bitfinex/quotes_ETHUSD_20220120
["timestamp","ask_amount","ask_price","bid_price","bid_amount"]
[1642676655343,0.10341055,3146.8,3146.7,4.27846254]
[1642676655542,0.10341055,3146.8,3146.7,4.57846254]
[1642676655744,0.10341055,3146.8,3146.7,4.27846254]
[1642676656343,0.10341055,3146.8,3146.7,7.21074468]
[1642676656545,0.10341055,3146.8,3146.7,4.27846254]
[1642676656745,0.10341055,3146.8,3146.7,4.27846249]
[1642676656945,0.01267373,3148.1,3146.9,5.35]
[1642676657150,0.25181047,3148.5,3147.7,0.01245715]
[1642676657347,0.25181047,3148.5,3147.8,0.62519]
[1642676657544,0.25181047,3148.5,3147.9,2.70449896]
[1642676657794,0.25181047,3148.5,3147.9,5.89059582]
[1642676657795,0.25082123,3148.5,3147.9,5.89059582]
[1642676657987,0.25082123,3148.5,3147.8,1.41854236]
[1642676657988,0.25082123,3148.5,3148.3,1.20744356]
[1642676658189,1.18664479,3148.4,3148.3,1.20744356]
[1642676658390,0.25082123,3148.5,3148.3,1.20744356]
[1642676658590,0.25082123,3148.5,3148.1,0.7941636]
[1642676658789,0.25082123,3148.5,3148.2,0.3]
[1642676658991,0.25082123,3148.5,3148.3,3.2]
[1642676659390,0.24997473,3148.5,3148.4,2.84585254]
[1642676659590,1.78346254,3148.5,3148.4,5.18548804]
[1642676659794,1.79312573,3148.5,3148.4,2.3396355]
[1642676659990,1.79312573,3148.5,3148.4,5.11809084]
[1642676660193,0.25963792,3148.5,3148.4,2.6396355]
[1642676660395,0.25963792,3148.5,3148.4,5.81740012]
[1642676660598,0.25963792,3148.5,3148.4,2.6396355]
[1642676660797,0.25963792,3148.5,3148.4,10.97659012]
[1642676660998,0.25963792,3148.5,3148.4,7.7988255]
[1642676661196,0.25963792,3148.5,3148.4,6.27659012]
[1642676661397,0.25963792,3148.5,3148.4,3.0988255]
[1642676661640,0.25963792,3148.5,3148.4,6.4488255]
[1642676661838,0.25963792,3148.5,3148.4,3.0988255]
[1642676662039,0.1,3148.7,3148.5,5.35]
[1642676662639,0.1,3148.7,3148.6,5.416]
[1642676662839,0.1,3148.7,3148.6,8.49393219]
[1642676663038,0.10113685,3148.7,3148.6,8.95312219]
[1642676664139,0.10113685,3148.7,3148.6,5.87519]
[1642676664339,0.10113685,3148.7,3148.6,0.92519]
[1642676664540,1.45380207,3148.7,3148.6,0.92519]
[1642676664740,0.10113685,3148.7,3148.6,6.27519]
[1642676664944,0.10113685,3148.7,3148.6,8.27889]
[1642676665297,0.1,3149.0,3148.7,5.35]
[1642676665298,0.0979176,3149.0,3148.7,5.35]
[1642676665491,0.0979176,3149.0,3148.7,1.093972]
[1642676665691,1.50218348,3148.8,3148.7,0.3]
[1642676665891,1.50218348,3148.8,3148.6,0.45919]
[1642676666494,1.50218348,3148.8,3148.7,3.22293586]
[1642676666893,0.00113685,3148.9,3148.7,3.52293586]
[1642676667094,0.00113685,3148.9,3148.8,3.12947154]
[1642676667694,0.00113685,3148.9,3148.7,0.3]
[1642676667897,0.00113685,3148.9,3148.8,5.50919]
[1642676668096,0.0979176,3149.0,3148.9,6.82197719]
[1642676668296,0.0979176,3149.0,3148.9,7.58797719]
[1642676668496,0.0979176,3149.0,3148.9,11.05238615]
[1642676668796,0.1,3149.1,3149.0,5.35]
[1642676669039,0.1,3149.1,3149.0,6.816]
[1642676669339,0.10113684,3149.1,3149.0,6.816]
[1642676669538,0.1,3149.5,3149.1,5.35]
[1642676669741,0.1,3149.5,3149.4,5.35]
[1642676669742,0.0001,3149.5,3149.4,5.35]
[1642676669940,0.0001,3149.5,3149.4,5.816]
[1642676670142,0.1,3149.8,3149.5,5.35]
[1642676670343,0.1,3149.8,3149.7,4.50919]
[1642676670543,2.02084621,3150.0,3149.8,5.35]
[1642676670544,0.59564535,3150.0,3149.8,5.35]
[1642676670744,0.59564535,3150.0,3149.7,1.22519]
[1642676670945,0.59564535,3150.0,3148.9,0.16034202]
[1642676670946,0.00454739,3149.9,3148.9,0.16034202]
[1642676671145,3.16895635,3149.9,3148.9,0.16034202]
[1642676671345,0.44962432,3150.0,3149.0,3.6]
[1642676671744,0.44962432,3150.0,3149.0,0.00454739]
[1642676671943,1.515524,3149.8,3149.0,0.00454739]
[1642676673317,3.16986483,3149.7,3149.0,0.00454739]
[1642676673615,1.515524,3149.8,3149.0,0.00454739]
[1642676674215,4.6109678,3149.8,3149.0,0.00454739]
[1642676674414,1.515524,3149.8,3149.0,0.00454739]
[1642676674714,1.515524,3149.8,3149.2,0.7939513]
[1642676674914,1.515524,3149.8,3149.0,0.00454739]
[1642676675115,1.515524,3149.8,3149.3,0.00284212]
[1642676675116,3.07302751,3149.7,3149.3,0.00284212]
[1642676675917,3.86722751,3149.7,3149.3,0.00284212]
[1642676676118,3.07302751,3149.7,3149.3,0.00284212]
[1642676676417,1.515524,3149.8,3149.3,0.00284212]
[1642676676640,2.515524,3149.8,3149.3,0.00284212]
[1642676676939,1.515524,3149.8,3149.3,0.00284212]
[1642676677643,2.515524,3149.8,3149.3,0.00284212]
[1642676679043,7.73435296,3149.8,3149.3,0.00284212]
[1642676679243,3.7603,3149.7,3149.3,3.20284212]
[1642676679443,0.466,3149.6,3149.3,3.20284212]
[1642676679642,0.466,3149.6,3149.4,0.00227369]
[1642676679844,0.466,3149.6,3149.3,3.2]
[1642676679845,5.35,3149.5,3149.3,3.2]
[1642676680046,2.26035,3149.4,3149.3,3.2]
[1642676680299,0.466,3149.4,3149.3,3.2]
[1642676680499,0.8294543,3149.7,3149.3,3.2]
[1642676680694,1.8294543,3149.7,3149.3,3.2]
[1642676680895,0.00113684,3149.6,3149.3,3.2]
[1642676681695,3.16689718,3149.6,3149.3,3.2]
[1642676682096,1.0,3149.5,3149.3,3.2]
[1642676682496,0.00113684,3149.6,3149.3,3.2]
[1642676682696,3.1161186,3149.6,3149.3,3.2]
[1642676683196,1.0,3149.5,3149.3,3.2]
[1642676684038,0.00113684,3149.6,3149.3,3.2]
[1642676684039,3.26549233,3149.6,3149.3,3.2]
[1642676684239,0.00113684,3149.6,3149.3,3.2]
[1642676684441,1.0,3149.5,3149.3,3.2]
[1642676684640,0.00113684,3149.6,3149.3,3.2]
[1642676691398,0.00113684,3149.6,3149.5,1.27137856]
[1642676692239,0.00113684,3149.6,3149.3,4.71191354]
[1642676692439,0.00113684,3149.6,3149.3,3.20133658]
[1642676693641,0.00113684,3149.6,3149.3,3.20133655]
[1642676694041,1.00113684,3149.6,3149.3,3.20133655]
[1642676694242,0.00113684,3149.6,3149.3,3.20133655]
[1642676694442,1.00113684,3149.6,3149.3,3.20133655]
[1642676694641,3.11192263,3149.5,3149.3,3.20133655]
[1642676695493,3.11192263,3149.5,3149.3,3.20133653]
[1642676696095,3.11093869,3149.5,3149.3,3.20133653]
[1642676696494,2.58958684,3149.6,3149.3,3.20133653]
[1642676696693,3.10127449,3149.5,3149.3,3.20133653]
[1642676697494,2.58958684,3149.6,3149.3,3.20133651]
[1642676698293,1.00113684,3149.6,3149.3,3.20133651]
[1642676698494,0.00113684,3149.6,3149.3,3.20133651]
[1642676698894,0.00113684,3149.6,3149.3,3.20133649]
[1642676701443,0.00113684,3149.6,3149.4,2.70293243]
[1642676701641,0.00113684,3149.6,3149.4,2.70426889]
[1642676703190,0.00113684,3149.6,3149.5,3.05]
[1642676703490,0.00113684,3149.6,3149.5,8.66746994]
[1642676704290,0.00113684,3149.6,3149.5,10.03135279]
[1642676706541,0.00113684,3149.6,3149.5,12.05671922]
[1642676707138,0.00113684,3149.6,3149.5,14.80820912]
[1642676707739,0.00113684,3149.6,3149.5,13.80820912]
[1642676708139,0.00113684,3149.6,3149.5,14.60700912]
[1642676708340,0.00113684,3149.6,3149.5,14.37382903]
[1642676709146,0.00113684,3149.6,3149.5,13.37382903]
[1642676709342,0.00113684,3149.6,3149.5,13.21463903]
[1642676709542,0.00113684,3149.6,3149.5,12.52333903]
[1642676710143,0.00113684,3149.6,3149.5,12.52333895]
[1642676710597,0.44962432,3150.0,3149.6,5.35]
[1642676710795,0.44962432,3150.0,3149.7,5.77253766]
[1642676710996,0.00170527,3149.9,3149.8,2.70293243]
[1642676711195,0.00170527,3149.9,3149.8,5.60321344]
[1642676711798,0.00170527,3149.9,3149.8,2.70488858]
[1642676714942,0.00170527,3149.9,3149.8,3.30444706]
[1642676715146,0.00170527,3149.9,3149.8,2.70444706]
[1642676715346,0.00170527,3149.9,3149.8,3.00445638]
[1642676715547,0.00170527,3149.9,3149.8,0.60195611]
[1642676715747,0.00170527,3149.9,3149.8,0.30195611]
[1642676717350,0.00170527,3149.9,3149.8,3.00435982]
[1642676717550,0.00170527,3149.9,3149.8,0.60195611]
[1642676717990,0.00170527,3149.9,3149.8,0.30195611]
[1642676718191,0.00170527,3149.9,3149.8,3.00440056]
[1642676718389,0.00170527,3149.9,3149.8,0.30195609]
[1642676718991,0.00170527,3149.9,3149.8,2.45195609]
[1642676719192,0.00170527,3149.9,3149.8,0.30195609]
[1642676723042,0.00170527,3149.9,3149.8,3.20195609]
[1642676723442,0.00170527,3149.9,3149.8,6.15154208]
[1642676723643,0.44962432,3150.0,3149.9,5.35]
[1642676723843,0.44962432,3150.0,3149.9,11.36186532]
[1642676724042,0.44962432,3150.0,3149.9,11.66186532]
[1642676724249,0.82915926,3151.0,3150.1,5.35]
[1642676724446,3.33826877,3152.1,3150.1,5.35]
[1642676724447,13.7408162,3151.6,3150.2,5.85539493]
[1642676724648,13.7408162,3151.6,3150.9,1.36559995]
[1642676724845,13.7408162,3151.6,3150.9,2.68969995]
[1642676725047,13.7408162,3151.6,3150.9,3.78318585]
[1642676725309,0.00795793,3151.3,3150.9,3.78318585]
[1642676725504,0.00795793,3151.3,3150.9,6.93629729]
[1642676725701,1.6197162,3151.6,3151.1,4.45]
[1642676725702,0.00738951,3151.2,3151.1,4.45]
[1642676725902,0.00738951,3151.2,3151.1,4.75]
[1642676726800,0.00738951,3151.2,3151.0,3.45311144]
[1642676727002,0.00738951,3151.2,3150.6,0.00195592]
[1642676727204,3.28019844,3151.5,3150.5,2.70369729]
[1642676727205,0.00682108,3151.1,3150.5,2.70369729]
[1642676727402,1.27102365,3151.1,3150.5,2.70369729]
[1642676727701,0.00625266,3151.0,3150.5,2.70369729]
[1642676727902,0.00625266,3151.0,3150.6,1.59416724]
[1642676728102,0.127087,3151.5,3150.7,2.70174137]
[1642676728103,0.00568424,3150.9,3150.7,2.70174137]
[1642676728303,0.00568424,3150.9,3150.7,3.30174137]
[1642676728502,1.6197162,3151.6,3150.8,6.45174137]
[1642676728703,1.6197162,3151.6,3151.0,0.7934492]
[1642676728904,1.25767091,3151.3,3151.0,1.0934492]
[1642676729148,1.25767091,3151.3,3151.1,2.97855848]
[1642676729348,0.00738951,3151.2,3151.1,2.93665657]
[1642676729547,0.00738951,3151.2,3151.0,1.3934492]
[1642676729949,1.25767091,3151.3,3151.0,1.3934492]
[1642676729950,0.00682108,3151.1,3151.0,0.6]
[1642676730149,0.00682108,3151.1,3150.8,0.3]
[1642676730552,0.00625266,3151.0,3150.7,3.80195586]
[1642676730952,0.00568424,3150.9,3150.8,2.14712934]
[1642676731154,0.127038,3152.6,3150.8,2.14712934]
[1642676731155,1.50350132,3152.9,3151.0,5.35]
[1642676731359,1.50350132,3152.9,3152.2,0.0120151]
[1642676731553,1.50350132,3152.9,3152.2,1.0627951]
[1642676731756,1.50350132,3152.9,3152.2,0.9041151]
[1642676731955,1.12384775,3152.8,3152.3,0.79308]
[1642676732155,1.12384775,3152.8,3152.3,4.2593198]
[1642676732357,0.01023162,3152.7,3152.4,0.3]
[1642676732553,1.08407937,3152.8,3152.4,4.3]
[1642676732798,1.08407937,3152.8,3152.3,0.3]
[1642676732799,1.08407937,3152.8,3152.5,0.00113685]
[1642676733192,1.35963693,3152.7,3152.4,0.00170527]
[1642676733391,1.35963693,3152.7,3151.9,0.00454739]
[1642676733995,2.59383693,3152.7,3151.9,0.00454739]
[1642676734194,2.59383693,3152.7,3151.6,0.00625266]
[1642676734396,1.47292869,3151.8,3151.6,0.00625266]
[1642676734597,4.66263,3153.1,3151.6,0.00625266]
[1642676734598,1.29822476,3152.2,3151.7,7.0504479]
[1642676734800,1.32559558,3151.8,3151.7,4.36208169]
[1642676735000,1.32559558,3151.8,3151.7,7.06258162]
[1642676735199,1.32559558,3151.8,3151.7,10.21557614]
[1642676735397,1.32559558,3151.8,3151.7,7.06258162]
[1642676735598,1.32559558,3151.8,3151.7,7.66258162]
[1642676735799,0.00113685,3152.9,3152.1,1.43723908]
[1642676735999,0.00113685,3152.9,3152.2,6.38291726]
[1642676736199,0.00113685,3152.9,3152.2,3.68582692]
[1642676736398,0.00113685,3152.9,3152.2,0.30284212]
[1642676736648,0.00113685,3152.9,3152.2,0.00284212]
[1642676736851,1.43714441,3152.8,3152.2,0.30284212]
[1642676737049,1.43714441,3152.8,3152.2,3.59354197]
[1642676737249,1.43714441,3152.8,3152.3,2.70218516]
[1642676737448,1.43714441,3152.8,3152.3,0.00227369]
[1642676737652,1.43714441,3152.8,3152.4,0.00170527]
[1642676737848,1.43714441,3152.8,3152.3,0.00227369]
[1642676738252,1.43714441,3152.8,3152.4,0.15868]
[1642676738653,1.43714441,3152.8,3152.5,2.70089895]
[1642676739053,1.43714441,3152.8,3152.5,0.00113685]
[1642676739253,1.43714441,3152.8,3152.5,2.70096302]
[1642676739653,1.43714441,3152.8,3152.5,0.30113685]
[1642676739853,0.00113685,3152.9,3152.6,0.79303]
[1642676740056,0.00113685,3152.9,3152.7,0.3]
[1642676740914,0.00113685,3152.9,3152.6,3.8]
[1642676741217,1.473375,3152.7,3152.6,3.8]
[1642676741515,1.473375,3152.7,3152.6,7.0175274]
[1642676741815,1.473375,3152.7,3152.6,7.29274199]
[1642676742017,0.00113685,3152.9,3152.6,10.45700626]
[1642676742217,0.00113685,3152.9,3152.6,7.75728557]
[1642676742616,0.00113685,3152.9,3152.6,6.96426427]
[1642676743017,1.28404263,3152.8,3152.7,2.69975691]
[1642676743217,0.04545261,3153.8,3152.7,6.46558917]
[1642676743420,1.71412487,3154.6,3152.8,8.04975691]
[1642676743421,3.10682487,3154.6,3152.8,8.04975691]
[1642676743617,0.00284211,3153.4,3152.9,5.55116591]
[1642676743817,0.00284211,3153.4,3153.0,2.69975691]
[1642676744045,7.32,3154.3,3153.0,2.69975691]
[1642676744046,0.00227369,3153.3,3153.0,2.99975691]
[1642676744244,0.00227369,3153.3,3153.0,0.3]
[1642676744446,0.00170527,3153.2,3153.0,0.3]
[1642676744746,0.00113684,3153.1,3152.7,0.00113685]
[1642676744946,1.16440653,3153.1,3152.7,2.70097056]
[1642676745150,1.16326969,3153.1,3152.7,0.00113685]
[1642676745357,1.16326969,3153.1,3152.6,3.8]
[1642676745358,9.78978696,3153.0,3152.6,3.59649782]
[1642676745555,9.78978696,3153.0,3152.6,3.2]
[1642676745556,0.01223362,3152.8,3152.6,3.2]
[1642676745752,3.566,3152.7,3152.6,3.2]
[1642676745954,0.466,3152.7,3152.6,3.2]
[1642676746252,0.00113685,3152.9,3152.7,0.932]
[1642676746454,0.466,3152.8,3152.7,0.932]
[1642676746851,0.466,3152.8,3152.7,0.9276367]
[1642676748693,3.016,3152.8,3152.7,0.9276367]
[1642676748892,3.55,3152.7,3152.6,3.2]
[1642676749293,1.87409504,3152.9,3151.8,0.00195517]
[1642676749294,5.15,3152.6,3151.8,0.00195517]
[1642676749695,5.15,3152.6,3151.9,0.00454739]
[1642676749894,5.616,3152.6,3151.9,0.00454739]
[1642676750095,1.29720344,3152.5,3151.9,0.00454739]
[1642676750606,1.17528212,3152.3,3151.9,0.00454739]
[1642676751941,0.00360482,3152.2,3151.9,0.00454739]
[1642676752845,0.46960482,3152.2,3151.9,0.00454739]
[1642676753044,0.46960482,3152.2,3151.1,0.01705272]
[1642676753045,5.35,3152.1,3151.1,0.01705272]
[1642676753243,8.84805035,3152.0,3151.8,0.00195516]
[1642676753442,8.30272795,3151.9,3151.8,0.00195516]
[1642676753642,5.716,3151.9,3151.8,0.00195516]
[1642676754042,10.45152682,3151.9,3151.8,0.00195516]
[1642676754543,8.56997451,3151.9,3151.8,0.00195516]
[1642676754744,7.06014326,3151.9,3151.8,0.00195516]
[1642676755599,1.81014326,3151.9,3151.8,0.00195516]
[1642676756796,1.81376899,3151.9,3151.8,0.00195516]
[1642676759545,5.06215989,3151.9,3151.8,0.00195516]
[1642676759941,6.24195989,3151.9,3151.8,0.00195516]
[1642676760142,5.77595989,3151.9,3151.8,0.00195516]
[1642676760547,5.82756899,3151.9,3151.8,0.00195516]
[1642676760750,7.30611386,3151.9,3151.8,0.0219321]
[1642676760947,8.30611386,3151.9,3151.8,3.2219321]
[1642676761146,3.82631386,3151.9,3151.8,3.2219321]
[1642676761549,2.34776899,3151.9,3151.8,3.2219321]
[1642676761947,1.34776899,3151.9,3151.8,3.2219321]
[1642676762148,2.34776899,3151.9,3151.8,3.2219321]
[1642676762448,1.34776899,3151.9,3151.8,3.2219321]
[1642676762648,2.34776899,3151.9,3151.8,3.2219321]
[1642676762895,1.34776899,3151.9,3151.8,3.2219321]
[1642676763097,2.34776899,3151.9,3151.8,3.2219321]
[1642676763301,1.34776899,3151.9,3151.8,3.2219321]
[1642676763497,2.34776899,3151.9,3151.8,3.2219321]
[1642676763899,1.34776899,3151.9,3151.8,3.2219321]
[1642676764698,1.34776899,3151.9,3151.8,3.22193201]
[1642676765501,1.34776899,3151.9,3151.8,5.92241454]
[1642676765804,1.34776899,3151.9,3151.8,5.9024376]
[1642676766645,1.34776899,3151.9,3151.8,3.20195507]
[1642676766844,1.34776899,3151.9,3151.8,5.90257318]
[1642676767048,1.64776899,3151.9,3151.8,5.90257318]
[1642676767547,5.54776899,3151.9,3151.8,5.90257318]
[1642676767745,6.01376899,3151.9,3151.8,5.90257318]
[1642676767944,7.01376899,3151.9,3151.8,5.90257318]
[1642676768346,3.11376899,3151.9,3151.8,5.90257318]
[1642676768949,2.64685801,3151.9,3151.8,5.90257318]
[1642676769149,1.64685801,3151.9,3151.8,5.90257318]
[1642676769350,2.64685801,3151.9,3151.8,5.90257318]
[1642676770294,1.64685801,3151.9,3151.8,5.90257318]
[1642676771700,5.00327141,3151.9,3151.8,5.90257318]
[1642676772298,1.64685801,3151.9,3151.8,5.90257318]
[1642676773601,1.34776899,3151.9,3151.8,5.90257318]
[1642676774250,1.34776899,3151.9,3151.8,5.90257296]
[1642676776856,1.34414326,3151.9,3151.8,5.90257296]
[1642676777255,1.34414326,3151.9,3151.8,5.90257292]
[1642676778095,1.34414326,3151.9,3151.8,3.20195481]
[1642676778496,5.71014326,3151.9,3151.8,3.20195481]
[1642676778897,2.11014326,3151.9,3151.8,3.20195481]
[1642676779495,4.36014326,3151.9,3151.8,3.20195481]
[1642676779695,5.94760326,3151.9,3151.8,3.20195481]
[1642676779898,23.76385326,3151.9,3151.8,3.20195481]
[1642676781204,23.92959515,3151.9,3151.8,2.7532451]
[1642676781567,5.35,3151.8,3151.2,0.00397896]
[1642676781752,20.6636866,3151.7,3151.3,2.70043169]
[1642676782052,21.4977491,3151.6,3151.3,2.70043169]
[1642676782251,2.0536866,3151.7,3151.5,5.35]
[1642676782252,1.5876866,3151.7,3151.5,5.35]
[1642676782452,0.16574189,3151.9,3151.6,5.89712631]
[1642676782651,0.00113685,3152.1,3151.7,2.70043169]
[1642676782853,0.00113685,3152.1,3151.8,2.70043169]
[1642676783253,1.54387787,3152.4,3151.8,5.53267432]
[1642676783554,1.54387787,3152.4,3151.9,3.00043169]
[1642676783756,1.54387787,3152.4,3152.0,2.70043169]
[1642676786001,1.84387787,3152.4,3152.0,2.70043169]
[1642676786202,1.84387787,3152.4,3151.7,0.00113685]
[1642676786409,20.45387787,3152.4,3151.7,0.00113685]
[1642676786802,20.45387787,3152.4,3151.5,3.14933682]
[1642676787001,20.45387787,3152.4,3151.6,2.70008905]
[1642676787201,20.45387787,3152.4,3151.6,2.70179432]
[1642676787202,21.24744787,3152.4,3151.6,2.70179432]
[1642676787403,0.7936017,3152.3,3151.7,0.00113685]
[1642676787605,1.58739,3152.2,3151.7,2.7012259]
[1642676787802,1.58739,3152.2,3151.8,2.70027212]
[1642676787803,20.49909527,3152.2,3151.8,2.70027212]
[1642676788005,0.00113685,3152.1,3151.7,0.00113685]
[1642676788203,1.00113685,3152.1,3151.7,0.00113685]
[1642676788604,19.61113685,3152.1,3151.3,0.00341054]
[1642676788805,19.4037101,3152.0,3151.3,0.00341054]
[1642676789059,19.7037101,3152.0,3151.3,0.00341054]
[1642676789445,1.0937101,3152.0,3151.3,0.00341054]
[1642676789645,1.0937101,3152.0,3151.3,2.70368342]
[1642676789846,1.47555112,3151.9,3151.4,2.70027288]
[1642676790046,1.47555112,3151.9,3151.5,2.70027288]
[1642676790047,20.08555112,3151.9,3151.5,2.70027288]
[1642676790248,20.08555112,3151.9,3151.6,2.70027288]
[1642676790451,20.08555112,3151.9,3151.7,2.70027288]
[1642676790650,20.08555112,3151.9,3151.8,2.70027288]
[1642676791052,20.08555112,3151.9,3151.7,0.00113685]
[1642676791454,20.08555112,3151.9,3151.5,2.70027288]
[1642676791455,0.79384,3151.7,3151.5,2.70027288]
[1642676791657,19.40384,3151.7,3151.5,0.00227369]
[1642676791952,20.1976198,3151.7,3151.6,0.00170527]
[1642676792153,20.4976198,3151.7,3151.6,0.00170527]
[1642676792452,20.4976198,3151.7,3151.3,0.00341054]
[1642676792453,18.91,3151.6,3151.3,0.00341054]
[1642676793702,0.3,3151.6,3151.3,0.00341054]
[1642676794205,3.44933682,3151.6,3151.3,0.00341054]
[1642676794405,2.71657807,3151.7,3151.3,0.00341054]
[1642676795006,18.61,3151.6,3151.3,0.00341054]
[1642676795607,0.79385,3151.5,3151.3,0.00341054]
[1642676795807,18.61,3151.4,3151.3,0.00341054]
[1642676796755,18.61,3151.4,3151.2,2.70053148]
[1642676796756,19.40402,3151.4,3151.2,2.70053148]
[1642676797051,27.7422483,3151.3,3151.1,0.01705272]
[1642676797252,5.35,3151.1,3150.2,1.59787322]
[1642676797455,1.43586327,3150.2,3150.1,1.59787322]
[1642676797652,0.466,3150.7,3149.9,1.59787322]
[1642676797854,23.36735959,3150.6,3149.8,2.91572636]
[1642676798053,23.66735959,3150.6,3150.0,0.0073895]
[1642676798253,3.15001457,3150.5,3150.0,0.0073895]
[1642676798452,1.5600378,3150.6,3150.1,0.72037439]
[1642676798652,1.53939512,3150.5,3150.1,0.72037439]
[1642676798852,4.76799799,3150.5,3150.2,0.00625266]
[1642676799054,1.53939512,3150.5,3150.2,0.00625266]
[1642676799454,4.68680997,3150.5,3150.2,0.00625266]
[1642676799654,4.69246111,3150.5,3150.2,0.00625266]
[1642676800056,23.30246111,3150.5,3149.7,0.00909477]
[1642676800502,23.30246111,3150.5,3149.7,1.15491743]
[1642676800805,23.30246111,3150.5,3149.8,0.00852635]
[1642676801002,23.30246111,3150.5,3149.8,0.72891321]
[1642676801406,23.30246111,3150.5,3149.9,0.00795793]
[1642676801604,20.14939512,3150.5,3149.9,0.00795793]
[1642676801807,0.79413,3150.3,3149.9,0.00795793]
[1642676802004,1.5882452,3150.3,3149.9,0.00795793]
[1642676802203,0.3,3150.2,3149.9,0.00795793]
[1642676802603,0.3,3150.2,3149.5,0.01023162]
[1642676802804,0.3,3150.2,3149.6,1.1226613]
[1642676803003,3.17335863,3150.2,3149.6,1.1226613]
[1642676803203,18.91,3150.3,3149.7,0.00909477]
[1642676803204,1.34610333,3150.0,3149.7,0.00909477]
[1642676803403,1.64610333,3150.0,3149.7,0.7294931]
[1642676803604,0.3,3150.0,3149.7,0.7294931]
[1642676803806,18.61,3150.3,3149.8,0.00852635]
[1642676804049,3.15653529,3150.2,3149.8,0.00852635]
[1642676804247,3.1617593,3150.2,3149.8,0.00852635]
[1642676804447,18.91,3150.3,3149.8,0.00852635]
[1642676805044,1.37064885,3150.1,3149.7,0.00909477]
[1642676805451,1.67064885,3150.1,3149.7,0.00909477]
[1642676806052,1.67064885,3150.1,3149.4,0.01080004]
[1642676806651,3.14495872,3150.0,3149.4,1.23082941]
[1642676806852,3.14495872,3150.0,3149.4,0.01080004]
[1642676807055,3.14495872,3150.0,3149.5,0.01023162]
[1642676807252,5.68025313,3150.1,3149.5,0.72041798]
[1642676807455,0.128,3150.9,3149.7,0.01299761]
[1642676807656,0.127091,3151.2,3150.4,0.0121492]
[1642676808096,0.127091,3151.2,3150.5,0.00454739]
[1642676808495,1.60520439,3151.2,3150.7,1.4673295]
[1642676808696,0.127091,3151.2,3150.7,1.4673295]
[1642676808896,0.427091,3151.2,3150.8,0.00284212]
[1642676809097,0.12624625,3151.2,3150.8,0.00284212]
[1642676810904,0.12624625,3151.2,3151.0,0.01576179]
[1642676811303,0.12624625,3151.2,3151.1,0.00113685]
[1642676811746,1.55639004,3151.4,3151.1,0.00113685]
[1642676811946,0.3,3151.4,3151.1,0.00113685]
[1642676812349,24.27918837,3151.7,3151.1,0.00113685]
[1642676812545,19.43888837,3151.7,3151.1,0.00113685]
[1642676812746,0.00170527,3151.6,3151.1,0.00113685]
[1642676813147,0.00113685,3151.5,3151.1,0.00113685]
[1642676813347,0.00113685,3151.5,3151.2,1.54317165]
[1642676814147,0.00113685,3151.5,3151.1,0.00113685]
[1642676814951,0.00113685,3151.5,3150.9,2.66286277]
[1642676815153,0.00170527,3151.4,3150.9,2.66286277]
[1642676815601,0.00113685,3151.3,3150.9,2.66286277]
[1642676815800,0.00113685,3151.3,3150.8,1.41234408]
[1642676816005,1.56083194,3151.6,3150.9,1.26560305]
[1642676816200,1.56083194,3151.6,3150.9,3.93406783]
[1642676816400,0.0022737,3151.5,3150.9,3.94532524]
[1642676816799,0.00170527,3151.4,3150.9,3.94532524]
[1642676816999,0.00170527,3151.4,3151.0,2.70023902]
[1642676817202,0.00113685,3151.3,3151.0,2.70023902]
[1642676817401,0.00113685,3151.3,3151.0,3.00023902]
[1642676817604,1.14252229,3151.6,3151.0,3.00023902]
[1642676817605,1.14536441,3151.6,3151.1,2.70023902]
[1642676818002,0.0022737,3151.5,3151.1,2.70023902]
[1642676818203,0.0022737,3151.5,3151.1,2.69718902]
[1642676818403,0.00170527,3151.4,3151.0,0.3]
[1642676818611,0.00170527,3151.4,3151.0,3.10778]
[1642676818804,0.00113685,3151.3,3151.0,3.10778]
[1642676819360,0.00284212,3151.6,3151.0,3.10778]
[1642676819759,0.0022737,3151.5,3151.0,3.90135]
[1642676820160,0.82888837,3151.7,3151.0,0.79357]
[1642676820161,0.00170527,3151.4,3151.0,0.79357]
[1642676820359,0.00170527,3151.4,3150.9,4.49040335]
[1642676820360,0.00170527,3151.4,3150.9,4.24410335]
[1642676820560,0.82888837,3151.7,3150.9,4.24410335]
[1642676820561,0.00113685,3151.3,3150.9,4.24410335]
[1642676820960,0.00284212,3151.6,3150.9,4.24410335]
[1642676821360,0.0022737,3151.5,3151.0,3.01448387]
[1642676821761,0.00170527,3151.4,3151.0,3.01448387]
[1642676821960,0.00170527,3151.4,3151.3,1.4164112]
[1642676822161,0.82888837,3151.7,3151.3,1.4164112]
[1642676822360,0.82888837,3151.7,3151.3,1.7164112]
[1642676822563,0.00284212,3151.6,3151.3,1.7164112]
[1642676822995,1.12888837,3151.7,3151.3,1.7164112]
[1642676822996,0.0022737,3151.5,3151.3,1.7164112]
[1642676823400,0.00170527,3151.4,3151.3,1.7164112]
[1642676823701,0.00170527,3151.4,3151.3,0.3]
[1642676824100,0.00170527,3151.4,3151.3,3.2]
[1642676824304,0.00170527,3151.4,3151.3,3.5]
[1642676827457,7.34945261,3152.7,3151.4,5.35341054]
[1642676827657,4.0589622,3153.0,3151.5,3.58739752]
[1642676827658,1.2124,3153.0,3151.5,3.58739752]
[1642676827858,1.2124,3153.0,3151.6,1.62468]
[1642676827859,0.00511582,3152.3,3151.6,1.62468]
[1642676828059,0.00511582,3152.3,3151.7,3.80857379]
[1642676828255,0.00454739,3152.2,3151.8,1.27339553]
[1642676828456,0.00454739,3152.2,3151.9,3.08349212]
[1642676828757,1.1419579,3152.9,3152.0,4.59820499]
[1642676828758,0.00397897,3152.1,3152.0,4.59820499]
[1642676828955,0.00397897,3152.1,3152.0,7.79455073]
[1642676830158,0.00397897,3152.1,3152.0,4.69455073]
[1642676830401,0.00397897,3152.1,3152.0,3.19634574]
[1642676830601,0.00397897,3152.1,3152.0,0.3]
[1642676831000,0.00397897,3152.1,3151.9,2.96847269]
[1642676831398,0.00341055,3152.0,3151.9,4.42377521]
[1642676831597,1.4419579,3152.9,3152.4,1.50279773]
[1642676831999,0.00454738,3152.8,3152.4,1.50279773]
[1642676832202,0.00454738,3152.8,3152.1,0.3]
[1642676832399,0.00397896,3152.7,3152.1,2.65879168]
[1642676832599,0.00397896,3152.7,3152.0,3.19658945]
[1642676832799,0.00341054,3152.6,3152.0,3.19658945]
[1642676833203,0.00284211,3152.5,3152.0,3.19658945]
[1642676833400,0.00284211,3152.5,3152.1,1.51785617]
[1642676833601,0.00227369,3152.4,3152.1,1.81785617]
[1642676833800,0.00227369,3152.4,3152.1,4.51985548]
[1642676834057,0.00170527,3152.3,3152.1,4.51985548]
[1642676834252,0.00170527,3152.3,3152.0,4.62906278]